fUST/lending_fUST_20250328
["ID","MTS","AMOUNT","RATE_DAILY","PERIOD"]
[356755534,1743116001269,-202.39100001,0.00016,2]
[356755535,1743116004469,-264.2396,0.00016,2]
[356755536,1743116009952,-181.31170915,0.00016,2]
[356755537,1743116043656,-234.0697124,0.00016,2]
[356755538,1743116058697,-163.52865105,0.00016,2]
[356755539,1743116074463,-489.03549556,0.00016,2]
[356755540,1743116106024,-300.0,0.00016,2]
[356755541,1743116114534,-200.0,0.00016,2]
[356755542,1743116127281,-222.49524702,0.00016,2]
[356755543,1743116164801,-172.63844085,0.00016,2]
[356755544,1743116406926,-172.63844085,0.000159,2]
[356755545,1743116406952,-468.76644996,0.00016,2]
[356755546,1743116406977,-270.18960919,0.00019178,2]
[356755573,1743117038332,-159.247357,0.00013699,2]
[356755574,1743117038342,-150.0,0.00015,2]
[356755575,1743117038351,-186.807722,0.00023671,2]
[356755576,1743117038361,-953.1958797,0.00023746,2]
[356755577,1743117038370,-669.9226033,0.00023861,2]
[356755578,1743117038379,-380.0,0.00024658,2]
[356755579,1743117038388,-200.0,0.00024658,2]
[356755580,1743117038398,-3000.0,0.000248,2]
[356755581,1743117038407,-300.0,0.00024809,2]
[356755582,1743117038416,-3000.0,0.0002481,2]
[356755583,1743117038425,-3506.70262657,0.0002481,2]
[356755584,1743117038434,-3000.0,0.0002482,2]
[356755585,1743117038443,-168.57,0.0002482,2]
[356755586,1743117038452,-3000.0,0.0002483,2]
[356755587,1743117038462,-3000.0,0.0002484,2]
[356755588,1743117038471,-3000.0,0.0002485,2]
[356755589,1743117038481,-3000.0,0.0002486,2]
[356755590,1743117038490,-500.0,0.00024866,2]
[356755591,1743117038500,-500.0,0.00024866,2]
[356755592,1743117038509,-1031.26521242,0.00024866,2]
[356755593,1743117038518,-1031.26521242,0.00024866,2]
[356755594,1743117038527,-500.0,0.00024866,2]
[356755595,1743117038537,-1031.26521242,0.00024866,2]
[356755596,1743117038546,-1031.26521242,0.00024866,2]
[356755597,1743117038556,-1031.26521242,0.00024866,2]
[356755598,1743117038566,-638.02774933,0.00024866,2]
[356755604,1743117040662,-393.23746309,0.00024866,2]
[356755605,1743117040672,-176.54190526,0.00024866,2]
[356755606,1743117040946,-0.00554773,0.00024866,2]
[356755614,1743117043709,-854.71775943,0.00024866,2]
[356755615,1743117043719,-1031.26521242,0.00024866,2]
[356755616,1743117043728,-164.2524074,0.00024866,2]
[356755617,1743117044115,-867.01280502,0.00024866,2]
[356755618,1743117044125,-1031.26521242,0.00024866,2]
[356755619,1743117044135,-1031.26521242,0.00024866,2]
[356755620,1743117044144,-1031.26521242,0.00024866,2]
[356755621,1743117044158,-1031.26521242,0.00024866,2]
[356755622,1743117044167,-1031.26521242,0.00024866,2]
[356755623,1743117044177,-1031.26521242,0.00024866,2]
[356755624,1743117044186,-1031.26521242,0.00024866,2]
[356755625,1743117044196,-1031.26521242,0.00024866,2]
[356755626,1743117044206,-1031.26521242,0.00024866,2]
[356755627,1743117044215,-1031.26521242,0.00024866,2]
[356755628,1743117044225,-1031.26521242,0.00024866,2]
[356755629,1743117044235,-1031.26521242,0.00024866,2]
[356755630,1743117044245,-1031.26521242,0.00024866,2]
[356755631,1743117044254,-1031.26521242,0.00024866,2]
[356755632,1743117044263,-1031.26521242,0.00024866,2]
[356755633,1743117044273,-1031.26521242,0.00024866,2]
[356755634,1743117044282,-1031.26521242,0.00024866,2]
[356755635,1743117044291,-1031.26521242,0.00024866,2]
[356755636,1743117044301,-1031.26521242,0.00024866,2]
[356755637,1743117044310,-1031.26521242,0.00024866,2]
[356755638,1743117044320,-1031.26521242,0.00024866,2]
[356755639,1743117044329,-1031.26521242,0.00024866,2]
[356755640,1743117044339,-1031.26521242,0.00024866,2]
[356755641,1743117044348,-1031.26521242,0.00024866,2]
[356755642,1743117044358,-1031.26521242,0.00024866,2]
[356755643,1743117044367,-1031.26521242,0.00024866,2]
[356755644,1743117044376,-1031.26521242,0.00024866,2]
[356755645,1743117044385,-1031.26521242,0.00024866,2]
[356755646,1743117044394,-1031.26521242,0.00024866,2]
[356755647,1743117044403,-1031.26521242,0.00024866,2]
[356755648,1743117044412,-1031.26521242,0.00024866,2]
[356755649,1743117044421,-1031.26521242,0.00024866,2]
[356755650,1743117044430,-707.55853317,0.00024866,2]
[356755651,1743117044905,-300.0,0.00024866,2]
[356755653,1743117046441,-23.70667925,0.00024866,2]
[356755654,1743117046452,-650.54332075,0.00024866,2]
[356755655,1743117046475,-380.72189167,0.00024866,2]
[356755656,1743117046484,-1031.26521242,0.00024866,2]
[356755657,1743117046494,-1031.26521242,0.00024866,2]
[356755658,1743117046503,-197.89725513,0.00024866,2]
[356755659,1743117046515,-812.74265304,0.00024866,2]
[356755660,1743117046524,-1010.63990817,0.00024866,2]
[356755661,1743117046533,-1010.63990817,0.00024866,2]
[356755662,1743117046542,-1010.63990817,0.00024866,2]
[356755663,1743117046552,-1010.63990817,0.00024866,2]
[356755664,1743117046561,-1010.63990817,0.00024866,2]
[356755665,1743117046572,-1010.63990817,0.00024866,2]
[356755666,1743117046581,-916.77271917,0.00024866,2]
[356755667,1743117046592,-93.867189,0.00024866,2]
[356755668,1743117046602,-1010.63990817,0.00024866,2]
[356755669,1743117046611,-1010.63990817,0.00024866,2]
[356755670,1743117046620,-1010.63990817,0.00024866,2]
[356755671,1743117046630,-1010.63990817,0.00024866,2]
[356755672,1743117046639,-1010.63990817,0.00024866,2]
[356755673,1743117046649,-1010.63990817,0.00024866,2]
[356755674,1743117046659,-1010.63990817,0.00024866,2]
[356755675,1743117046668,-1010.63990817,0.00024866,2]
[356755676,1743117046677,-1010.63990817,0.00024866,2]
[356755678,1743117046686,-1010.63990817,0.00024866,2]
[356755680,1743117046695,-1010.63990817,0.00024866,2]
[356755682,1743117046704,-1010.63990817,0.00024866,2]
[356755684,1743117046713,-1010.63990817,0.00024866,2]
[356755686,1743117046722,-1010.63990817,0.00024866,2]
[356755688,1743117046731,-1010.63990817,0.00024866,2]
[356755690,1743117046740,-1010.63990817,0.00024866,2]
[356755692,1743117046749,-1010.63990817,0.00024866,2]
[356755694,1743117046758,-1010.63990817,0.00024866,2]
[356755696,1743117046767,-1010.63990817,0.00024866,2]
[356755698,1743117046776,-1010.63990817,0.00024866,2]
[356755700,1743117046785,-363.66175279,0.00024866,2]
[356755702,1743117046797,-646.97815538,0.00024866,2]
[356755704,1743117046806,-1010.63990817,0.00024866,2]
[356755706,1743117046815,-1010.63990817,0.00024866,2]
[356755708,1743117046826,-1010.63990817,0.00024866,2]
[356755710,1743117046835,-1010.63990817,0.00024866,2]
[356755712,1743117046844,-165.20174465,0.00024866,2]
[356755714,1743117046855,-839.12166411,0.00024866,2]
[356755716,1743117046864,-1004.32340876,0.00024866,2]
[356755718,1743117046874,-303.27245359,0.00024866,2]
[356755720,1743117046885,-701.05095517,0.00024866,2]
[356755722,1743117046894,-1004.32340876,0.00024866,2]
[356755724,1743117046903,-1004.32340876,0.00024866,2]
[356755726,1743117046913,-1004.32340876,0.00024866,2]
[356755728,1743117046922,-805.92722984,0.00024866,2]
[356755877,1743118202285,-159.247357,0.00013699,2]
[356755878,1743118202311,-408.34122472,0.0001399,2]
[356755879,1743118202338,-550.1507198,0.00017,2]
[356755880,1743118202363,-343.35279848,0.000176,2]
[356755884,1743118232791,-1706.02236197,0.000176,2]
[356755885,1743118232801,-300.0,0.00017972,2]
[356755886,1743118232810,-500.0,0.00017973,2]
[356755887,1743118232820,-500.0,0.00017973,2]
[356755888,1743118232830,-500.0,0.00017973,2]
[356755889,1743118232839,-500.0,0.00017973,2]
[356755890,1743118232848,-500.0,0.00017973,2]
[356755891,1743118232857,-500.0,0.00017973,2]
[356755892,1743118232866,-500.0,0.00017973,2]
[356755893,1743118232875,-500.0,0.00017973,2]
[356755894,1743118232885,-500.0,0.00017973,2]
[356755895,1743118232894,-500.0,0.00017973,2]
[356755896,1743118232903,-500.0,0.00017973,2]
[356755897,1743118232912,-500.0,0.00017999,2]
[356755898,1743118232921,-500.0,0.00017999,2]
[356755899,1743118232931,-500.0,0.00017999,2]
[356755900,1743118232940,-500.0,0.00017999,2]
[356755901,1743118232949,-500.0,0.00017999,2]
[356755902,1743118232958,-500.0,0.00017999,2]
[356755903,1743118232967,-500.0,0.00017999,2]
[356755904,1743118232977,-500.0,0.00017999,2]
[356755905,1743118232986,-500.0,0.00017999,2]
[356755906,1743118232995,-500.0,0.00017999,2]
[356755907,1743118233004,-500.0,0.00017999,2]
[356755908,1743118233013,-500.0,0.00017999,2]
[356755909,1743118233023,-500.0,0.00017999,2]
[356755910,1743118233032,-500.0,0.00017999,2]
[356755911,1743118233041,-500.0,0.00017999,2]
[356755912,1743118233050,-500.0,0.00017999,2]
[356755913,1743118233059,-500.0,0.00017999,2]
[356755914,1743118233069,-500.0,0.00017999,2]
[356755915,1743118233078,-500.0,0.00017999,2]
[356755916,1743118233088,-500.0,0.00017999,2]
[356755917,1743118233098,-382.94182812,0.00017999,2]
[356755918,1743118233107,-500.0,0.00017999,2]
[356755919,1743118233116,-500.0,0.00017999,2]
[356755920,1743118233126,-500.0,0.00017999,2]
[356755921,1743118233135,-500.0,0.00017999,2]
[356755922,1743118233144,-500.0,0.00017999,2]
[356755923,1743118233153,-500.0,0.00017999,2]
[356755924,1743118233163,-500.0,0.00017999,2]
[356755925,1743118233172,-500.0,0.00017999,2]
[356755926,1743118233181,-500.0,0.00017999,2]
[356755927,1743118233191,-500.0,0.00017999,2]
[356755928,1743118233200,-500.0,0.00017999,2]
[356755929,1743118233209,-200.0,0.00017999,2]
[356755930,1743118233218,-149040.02687626,0.00018,2]
[356755947,1743118238560,-5738.67708266,0.00018,2]
[356755948,1743118238570,-420.0,0.0001961,2]
[356755949,1743118238579,-213.24680311,0.000199,2]
[356755950,1743118238589,-356.44981509,0.0002,2]
[356755951,1743118238598,-265.47442754,0.00021,2]
[356755952,1743118238607,-587.0,0.00021397,2]
[356755953,1743118238616,-347.06261282,0.00022,2]
[356755954,1743118238625,-836.18925878,0.00022,2]
[356755956,1743118241092,-0.01538576,0.00022,2]
[356755957,1743118242439,-163.79535546,0.00022,2]
[356755958,1743118242462,-33.78248446,0.000221,2]
[356755959,1743118243796,-256.23595039,0.000221,2]
[356755960,1743118243806,-213.24680302,0.00022627,4]
[356755961,1743118243815,-245.76220684,0.00023,2]
[356755962,1743118243825,-823.0,0.00023347,2]
[356755963,1743118243834,-500.0,0.00023452,2]
[356755964,1743118243843,-1000.0,0.00023452,2]
[356755965,1743118243852,-1000.0,0.00023452,2]
[356755966,1743118243862,-500.0,0.00023452,2]
[356755967,1743118243871,-1000.0,0.00023452,2]
[356755968,1743118243881,-387.89096924,0.00023452,2]
[356755969,1743118243890,-773.28964769,0.00023452,2]
[356755970,1743118243900,-1000.0,0.00023452,2]
[356755971,1743118243909,-1000.0,0.00023452,2]
[356755972,1743118243918,-564.49586227,0.00023452,2]
[356755973,1743118243928,-1000.0,0.00023452,2]
[356755974,1743118243937,-300.0,0.00023896,2]
[356755975,1743118243947,-1668.19183557,0.00024,2]
[356755976,1743118243957,-186.690623,0.00024076,2]
[356755977,1743118243967,-2970.0,0.00024582,2]
[356755978,1743118243977,-380.0,0.00024658,2]
[356755979,1743118243987,-1000.0,0.00024751,2]
[356755980,1743118243996,-1263.01355136,0.0002479,2]
[356755981,1743118244801,-208.59593072,0.0002479,2]
[356755982,1743118246643,-12141.14957164,0.0002479,2]
[356755983,1743118246657,-524.27496881,0.0002479,2]
[356755984,1743118246668,-4667.88011724,0.0002479,2]
[356755985,1743118247528,-252.77930069,0.0002479,2]
[356755986,1743118251009,-199.5033,0.00024887,3]
[356755987,1743118263167,-280.99130381,0.00024789,2]
[356755988,1743118273567,-152.9667,0.00024887,3]
[356755989,1743118273598,-97.84419881,0.0002489,3]
[356755990,1743118278588,-219.00869619,0.00017999,2]
[356755991,1743118302782,498.0,0.00025,120]
[356755992,1743118305412,-202.18618189,0.00024789,3]
[356755993,1743118322658,-208.07633784,0.00017999,2]
[356755994,1743118353644,500.0,0.00025,120]
[356755995,1743118356695,-211.24657045,0.00024789,3]
[356755996,1743118373822,-168.19779738,0.000249,5]
[356755997,1743118383321,-211.24657045,0.00024789,3]
[356755998,1743118392839,-151.0,0.00024788,2]
[356755999,1743118428879,-149.0,0.00024788,2]
[356756000,1743118428904,-102.78957212,0.00024789,3]
[356756001,1743118436994,-243.25210992,0.00024789,3]
[356756002,1743118443772,-168.19779738,0.00024788,2]
[356756003,1743118447796,-150.39660977,0.00024789,3]
[356756005,1743118564406,-300.0,0.00024789,3]
[356756006,1743118593722,2498.0,0.00025,120]
[356756010,1743118683317,-151.0,0.00024789,3]
[356756012,1743118688695,-151.18618189,0.00024789,3]
[356756013,1743118862100,-161.90646886,0.0002383,2]
[356756018,1743119019265,-245.60229344,0.0002381,2]
[356756023,1743119148017,-150.0,0.00021917,2]
[356756024,1743119148044,-69.00869619,0.00023287,2]
[356756025,1743119163742,-80.99130381,0.00023287,2]
[356756026,1743119163768,-89.03234898,0.00023606,2]
[356756030,1743119283046,-172.87853869,0.00023607,2]
[356756031,1743119299713,-300.0,0.00023606,2]
[356756032,1743119299737,-1.28280852,0.00023607,2]
[356756035,1743119345254,-186.05633659,0.00023606,2]
[356756036,1743119356318,-113.94366341,0.00023606,2]
[356756037,1743119356342,-39.05633659,0.00023607,2]
[356756041,1743119428540,-161.9425379,0.00023606,2]
[356756042,1743119431923,-138.0574621,0.00023606,2]
[356756043,1743119431933,-24686.7823162,0.00023607,2]
[356756044,1743119431943,-51.58711756,0.0002381,2]
[356756045,1743119431954,-161.313294,0.00023815,2]
[356756046,1743119431964,-151.78588114,0.0002383,2]
[356756047,1743119431973,-600.0,0.00024657,2]
[356756048,1743119431982,-553.68657552,0.00024657,2]
[356756050,1743119431991,-150.0,0.00024657,2]
[356756052,1743119432000,-193.45778137,0.0002475,2]
[356756054,1743119432009,-277.41,0.0002478,3]
[356756055,1743119432019,-231.18,0.0002478,3]
[356756056,1743119432027,-693.56,0.0002478,3]
[356756057,1743119432037,-1721.09775827,0.00024789,3]
[356756058,1743119432052,-2173.88276768,0.00024789,3]
[356756059,1743119432062,-72778.85659409,0.0002479,2]
[356756060,1743119432072,-500.0,0.0002485,2]
[356756061,1743119432082,-3000.0,0.0002487,2]
[356756062,1743119432091,-3000.0,0.0002488,2]
[356756063,1743119432101,-3000.0,0.0002489,2]
[356756064,1743119432115,-1687.48359114,0.00024897,2]
[356756065,1743119432124,-3000.0,0.000249,2]
[356756066,1743119432134,-25177.5825275,0.000249,2]
[356756067,1743119432143,-209.54504533,0.000249,5]
[356756068,1743119432152,-3000.0,0.0002491,2]
[356756069,1743119432161,-3000.0,0.0002492,2]
[356756070,1743119432170,-236.5657763,0.0002492,2]
[356756071,1743119432180,-900.0,0.0002492,2]
[356756072,1743119432189,-3000.0,0.0002493,2]
[356756073,1743119432198,-1007.17382146,0.00024933,2]
[356756074,1743119432208,-3000.0,0.0002494,2]
[356756075,1743119432217,-300.0,0.00024942,2]
[356756076,1743119432226,-3000.0,0.0002495,2]
[356756077,1743119432235,-3000.0,0.0002496,2]
[356756078,1743119432248,-3000.0,0.0002497,2]
[356756079,1743119432257,-3000.0,0.0002498,2]
[356756080,1743119432266,-9898.22122439,0.0002498,2]
[356756081,1743119432403,212.89607696,0.00024786,2]
[356756083,1743119435276,-285.22649319,0.00024786,2]
[356756088,1743119440056,-103.08995604,0.00024786,2]
[356756089,1743119440066,-553.70906138,0.00024786,2]
[356756090,1743119440076,-561.43127155,0.00024786,2]
[356756091,1743119440087,-134.41525999,0.00024786,2]
[356756097,1743119440425,-0.00113737,0.00024786,2]
[356756098,1743119440437,-365.58360264,0.00024786,2]
[356756099,1743119440447,-500.0,0.00024786,2]
[356756100,1743119440456,-258.29418281,0.00024786,2]
[356756101,1743119440466,-500.0,0.00024786,2]
[356756102,1743119440476,-8396.26151058,0.0002498,2]
[356756103,1743119440488,-3760.69615488,0.0002498,2]
[356756104,1743119440729,-929.06,0.0002498,2]
[356756107,1743119442939,-2193.34363765,0.0002498,2]
[356756108,1743119442949,-504.18478728,0.00024988,2]
[356756109,1743119442959,-3000.0,0.0002499,2]
[356756110,1743119442969,-3000.0,0.00025,2]
[356756111,1743119442979,-1051.98158369,0.00025,2]
[356756112,1743119442989,-2591.1668885,0.00025,2]
[356756113,1743119442999,-205.59245324,0.00025,2]
[356756114,1743119443008,-2497.83823561,0.00025,2]
[356756115,1743119443032,-2129.49859107,0.00025,2]
[356756116,1743119443044,-5736.66317332,0.00025,2]
[356756117,1743119443056,-836.90439513,0.00025,2]
[356756118,1743119443065,-3000.0,0.0002501,2]
[356756119,1743119443075,-3000.0,0.0002502,2]
[356756120,1743119443084,-3000.0,0.0002503,2]
[356756121,1743119443094,-3000.0,0.0002504,2]
[356756124,1743119443104,-3000.0,0.0002505,2]
[356756127,1743119443113,-3000.0,0.0002506,2]
[356756131,1743119443123,-3000.0,0.0002507,2]
[356756133,1743119443133,-3000.0,0.0002508,2]
[356756135,1743119443143,-13026.43243155,0.0002508,2]
[356756141,1743119446017,-996.74829307,0.0002508,2]
[356756142,1743119446057,-11154.40180288,0.0002508,2]
[356756143,1743119446067,-3000.0,0.0002509,2]
[356756144,1743119446077,-3000.0,0.000251,2]
[356756145,1743119446087,-3000.0,0.0002511,2]
[356756146,1743119446098,-3000.0,0.0002512,2]
[356756147,1743119446108,-3000.0,0.0002513,2]
[356756148,1743119446118,-3000.0,0.0002514,2]
[356756149,1743119446127,-1490.20442977,0.0002515,2]
[356756150,1743119446141,-285.98770573,0.0002515,2]
[356756151,1743119463229,-153.08776342,0.0002515,2]
[356756152,1743119583990,-235.64141489,0.0002515,2]
[356756153,1743119590286,-209.54504533,0.000259,6]
[356756154,1743119590317,-75.68144786,0.0002748,3]
[356756155,1743119594781,-186.05633659,0.000248,2]
[356756156,1743119600734,-161.313294,0.000248,2]
[356756157,1743119644306,-168.57,0.0002748,3]
[356756158,1743119672230,-210.9529972,0.0002748,3]
[356756159,1743119702243,-160.0,0.000248,2]
[356756160,1743119705293,-236.54546885,0.000248,2]
[356756161,1743119763477,-198.95866888,0.000248,2]
[356756162,1743119823905,-300.0,0.000248,2]
[356756163,1743119850648,-244.87850032,0.000248,2]
[356756164,1743119884375,-209.54504533,0.000259,6]
[356756165,1743119885506,-290.45495467,0.000248,2]
[356756166,1743119886115,-290.45495467,0.000248,2]
[356756215,1743120632264,-181.54439854,0.00013562,3]
[356756217,1743120632273,-174.7130108,0.00013699,2]
[356756218,1743120632283,-444.88821497,0.00024709,2]
[356756219,1743120632296,-150.0,0.00024729,2]
[356756220,1743120632306,-300.0,0.00024784,2]
[356756221,1743120632315,-10071.66348818,0.00024785,10]
[356756222,1743120632324,-931.33782202,0.000248,2]
[356756223,1743120632334,-3000.0,0.0002481,2]
[356756224,1743120632344,-3000.0,0.0002482,2]
[356756225,1743120632353,-3000.0,0.0002483,2]
[356756226,1743120632362,-3000.0,0.0002484,2]
[356756227,1743120632374,-168.57,0.0002484,2]
[356756228,1743120632383,-3000.0,0.0002485,2]
[356756229,1743120632391,-500.0,0.00024858,2]
[356756230,1743120632400,-500.0,0.00024858,2]
[356756231,1743120632410,-509.71245088,0.00024858,2]
[356756232,1743120632421,-500.0,0.00024858,2]
[356756233,1743120632431,-500.0,0.00024858,2]
[356756234,1743120632441,-3000.0,0.0002486,2]
[356756235,1743120632451,-3000.0,0.0002487,2]
[356756236,1743120632462,-4868.117565,0.0002488,2]
[356756237,1743120632471,-209.54504533,0.000249,5]
[356756238,1743120632483,-150.0,0.00024909,2]
[356756239,1743120632492,-151.0,0.00025149,2]
[356756240,1743120632502,-152.0,0.0002516,2]
[356756241,1743120632512,-471.14322483,0.00025435,2]
[356756242,1743120632523,-449.0,0.000255,2]
[356756243,1743120632532,-230.96429966,0.0002567,2]
[356756244,1743120632541,-192.0,0.00025726,2]
[356756245,1743120632551,-515.43651054,0.00026,2]
[356756246,1743120632560,-19900.0,0.00026,2]
[356756247,1743120632569,-150.0,0.00026279,2]
[356756248,1743120632579,-319.33700056,0.00026481,2]
[356756249,1743120632591,-420.0,0.00026855,2]
[356756250,1743120632601,-209.54504533,0.00026983,7]
[356756251,1743120632611,-754.89455395,0.00027,2]
[356756252,1743120632621,-3644.35051854,0.00027,2]
[356756253,1743120632631,-338.2995405,0.00027,2]
[356756254,1743120632643,-168.57,0.0002749,2]
[356756255,1743120632652,-9797.33684942,0.0002749,2]
[356756256,1743120632665,-766.37845676,0.0002749,2]
[356756257,1743120632677,-10837.22984212,0.0002749,2]
[356756258,1743120632686,-8233.72631053,0.000275,2]
[356756259,1743120632697,-36601.84655831,0.000275,2]
[356756260,1743120632708,-193.45778137,0.00027549,2]
[356756261,1743120632718,-150.0,0.00027649,2]
[356756262,1743120632727,-21400.9451483,0.0002798,2]
[356756263,1743120632737,-32331.1782507,0.0002799,2]
[356756264,1743120632746,-296.592108,0.0002799,7]
[356756265,1743120632756,-296.592108,0.0002799,7]
[356756266,1743120632765,-189.6,0.0002799,7]
[356756267,1743120632775,-189.6,0.0002799,7]
[356756268,1743120632784,-200.168136,0.0002799,7]
[356756269,1743120632793,-200.168136,0.0002799,7]
[356756270,1743120632802,-151.0,0.0002799,7]
[356756271,1743120632811,-180.575337,0.0002799,7]
[356756272,1743120632820,-5931.495755,0.0002799,7]
[356756273,1743120632830,-5931.495755,0.0002799,7]
[356756274,1743120632839,-151.0,0.0002799,7]
[356756275,1743120632849,-151.0,0.0002799,7]
[356756276,1743120632858,-500.0,0.00028973,5]
[356756277,1743120632867,-509.89211009,0.00028973,5]
[356756278,1743120632877,-159.31690214,0.00028973,5]
[356756279,1743120632887,-610.18256652,0.00028973,5]
[356756280,1743120632896,-302.56330493,0.00028973,5]
[356756281,1743120632905,-311.4557644,0.00028973,2]
[356756282,1743120632914,-500.0,0.00028973,5]
[356756283,1743120632923,-500.0,0.00028973,5]
[356756284,1743120632932,-500.0,0.00028973,5]
[356756285,1743120632941,-502.60612676,0.00028973,5]
[356756286,1743120632951,-500.0,0.00028973,5]
[356756287,1743120632963,-500.0,0.00028973,5]
[356756288,1743120632972,-500.0,0.00028973,5]
[356756289,1743120632981,-500.0,0.00028973,5]
[356756290,1743120632990,-612.10903076,0.00028973,5]
[356756291,1743120632999,-500.0,0.00028973,5]
[356756292,1743120633010,-500.0,0.00028973,5]
[356756293,1743120633019,-500.0,0.00028973,5]
[356756294,1743120633027,-296.592108,0.0002898,7]
[356756295,1743120633037,-296.592108,0.0002898,7]
[356756296,1743120633046,-189.6,0.0002898,7]
[356756297,1743120633056,-189.6,0.0002898,7]
[356756298,1743120633067,-200.168136,0.0002898,7]
[356756299,1743120633076,-200.168136,0.0002898,7]
[356756300,1743120633086,-200.168136,0.0002898,7]
[356756301,1743120633095,-200.168136,0.0002898,7]
[356756302,1743120633105,-151.0,0.0002898,7]
[356756303,1743120633114,-151.0,0.0002898,7]
[356756304,1743120633124,-5931.495755,0.0002898,7]
[356756305,1743120633133,-5931.495755,0.0002898,7]
[356756306,1743120633142,-151.0,0.0002898,7]
[356756307,1743120633152,-151.0,0.0002898,7]
[356756308,1743120633161,-185.14255,0.0002899,7]
[356756309,1743120633170,-185.14255,0.0002899,7]
[356756310,1743120633180,-260.672698,0.0002899,7]
[356756311,1743120633190,-260.672698,0.0002899,7]
[356756312,1743120633199,-151.0,0.0002899,7]
[356756313,1743120633211,-432.648596,0.0002899,7]
[356756314,1743120633220,-432.648596,0.0002899,7]
[356756315,1743120633231,-151.0,0.0002899,7]
[356756316,1743120633240,-280.961844,0.0002899,7]
[356756317,1743120633250,-280.961844,0.0002899,7]
[356756318,1743120633260,-151.0,0.0002899,7]
[356756319,1743120633272,-201.01350009,0.0002899,7]
[356756320,1743120633282,-151.0,0.0002899,7]
[356756321,1743120633293,-155.125516,0.0002899,7]
[356756322,1743120633303,-1286.449204,0.0002899,7]
[356756323,1743120633314,-1286.449204,0.0002899,7]
[356756324,1743120633323,-151.0,0.0002899,7]
[356756325,1743120633333,-151.0,0.0002899,7]
[356756326,1743120633343,-151.0,0.0002899,7]
[356756327,1743120633353,-296.592108,0.0002899,7]
[356756328,1743120633362,-296.592108,0.0002899,7]
[356756329,1743120633372,-189.6,0.0002899,7]
[356756330,1743120633381,-189.6,0.0002899,7]
[356756331,1743120633391,-200.168136,0.0002899,7]
[356756332,1743120633401,-200.168136,0.0002899,7]
[356756333,1743120633410,-151.0,0.0002899,7]
[356756334,1743120633420,-74202.45011869,0.0002899,2]
[356756335,1743120633433,-352.02252764,0.0002899,2]
[356756337,1743120637981,-10935.97932901,0.0002899,2]
[356756338,1743120638036,-113.32861796,0.0002899,2]
[356756339,1743120638047,-982.79729437,0.0002899,7]
[356756341,1743120640355,-4948.69846063,0.0002899,7]
[356756342,1743120640365,-5931.495755,0.0002899,7]
[356756343,1743120640375,-151.0,0.0002899,7]
[356756344,1743120640384,-272.637113,0.0002899,7]
[356756345,1743120640394,-136746.02029526,0.00029,2]
[356756368,1743120643067,-250.42934793,0.00029,2]
[356756369,1743120643122,-985.86671154,0.00029,2]
[356756370,1743120643133,-6674.39656206,0.00029,2]
[356756371,1743120643177,-521.05015928,0.00029,2]
[356756382,1743120646007,-5491.50769641,0.00029,2]
[356756383,1743120646017,-869.20486656,0.00029,2]
[356756384,1743120646026,-755.90265572,0.00029,2]
[356756385,1743120646036,-185.14255,0.00029,7]
[356756386,1743120646045,-185.14255,0.00029,7]
[356756387,1743120646054,-260.672698,0.00029,7]
[356756388,1743120646064,-260.672698,0.00029,7]
[356756389,1743120646073,-151.0,0.00029,7]
[356756390,1743120646082,-432.648596,0.00029,7]
[356756391,1743120646092,-432.648596,0.00029,7]
[356756392,1743120646101,-151.0,0.00029,7]
[356756393,1743120646110,-280.961844,0.00029,7]
[356756394,1743120646119,-280.961844,0.00029,7]
[356756395,1743120646128,-151.0,0.00029,7]
[356756396,1743120646137,-151.0,0.00029,7]
[356756397,1743120646147,-1286.449204,0.00029,7]
[356756398,1743120646156,-1286.449204,0.00029,7]
[356756399,1743120646165,-151.0,0.00029,7]